bitfinex-derivatives/quotes_ETHF0:USTF0_20251007
["timestamp","ask_amount","ask_price","bid_price","bid_amount"]
[1759851166129,2.84944953,4544.0,4543.5,0.58]
[1759851166324,0.39586,4543.8,4543.5,0.58]
[1759851166626,2.87595238,4544.6,4544.5,0.58]
[1759851166827,0.98926,4545.7,4544.5,2.1696]
[1759851167031,0.39578,4544.7,4544.6,1.5896]
[1759851167634,0.39584,4544.1,4544.0,2.1696]
[1759851167828,0.39583,4544.2,4544.0,2.1696]
[1759851168028,0.39583,4544.2,4544.1,1.5896]
[1759851168224,0.39583,4544.2,4544.1,2.47207204]
[1759851168429,0.39591,4543.3,4543.1,0.00193431]
[1759851168724,0.39591,4543.3,4543.2,1.5896]
[1759851169124,0.39591,4543.3,4543.2,2.47101561]
[1759851169933,0.39589,4543.5,4543.3,1.5896]
[1759851170126,0.223,4543.6,4543.2,1.5896]
[1759851170837,0.39588,4543.6,4543.2,1.5896]
[1759851171040,0.064,4544.2,4543.6,1.5896]
[1759851171338,0.39591,4543.2,4543.1,0.88528671]
[1759851171641,0.39591,4543.2,4543.1,2.47488671]
[1759851172032,0.3959,4543.4,4543.1,0.88528671]
[1759851172236,0.39588,4543.6,4543.5,2.1696]
[1759851172837,0.39587,4543.7,4543.6,1.5896]
[1759851174235,2.82462605,4543.9,4543.1,0.88528671]
[1759851174641,0.3959,4543.4,4543.1,0.88528671]
[1759851174840,0.39591,4543.3,4543.2,1.5896]
[1759851175342,0.39589,4543.5,4543.2,1.5896]
[1759851175540,2.82929871,4543.9,4543.5,0.58]
[1759851175739,0.39578,4544.7,4544.6,1.5896]
[1759851175935,0.39583,4544.2,4544.0,0.58]
[1759851176134,0.39586,4543.8,4543.5,0.58]
[1759851176341,0.39588,4543.7,4543.6,1.5896]
[1759851176640,0.39586,4543.8,4543.6,1.5896]
[1759851176832,0.39587,4543.8,4543.6,1.5896]
[1759851177032,0.39587,4543.7,4543.6,1.5896]
[1759851177842,0.39585,4544.0,4543.6,1.5896]
[1759851178238,3.81039699,4544.3,4543.6,1.5896]
[1759851178439,0.39587,4543.7,4543.5,0.58]
[1759851178641,0.39586,4543.8,4543.6,1.5896]
[1759851178842,0.39587,4543.7,4543.6,1.5896]
[1759851179042,0.39585,4543.9,4543.6,1.5896]
[1759851179341,0.39584,4544.1,4544.0,2.1696]
[1759851180247,0.39588,4543.6,4543.5,2.1696]
[1759851180442,0.98934,4545.4,4544.0,0.58]
[1759851180648,0.39579,4544.7,4544.6,1.5896]
[1759851180848,0.39584,4544.1,4543.9,1.5896]
[1759851181244,0.39587,4543.7,4543.6,1.5896]
[1759851181442,0.39587,4543.7,4543.5,0.58]
[1759851181637,0.39591,4543.3,4543.2,1.5896]
[1759851181843,0.98981,4543.2,4542.5,0.58]
[1759851182042,0.39596,4542.7,4542.5,0.58]
[1759851182246,0.39596,4542.7,4542.6,1.5896]
[1759851183350,0.39830583,4542.7,4542.6,1.59230505]
[1759851183750,0.00234583,4542.7,4542.6,1.59230505]
[1759851186152,0.164,4543.3,4543.0,0.5803]
[1759851186352,0.164,4543.3,4543.1,1.4557]
[1759851186353,0.55991,4543.3,4543.1,1.4557]
[1759851186652,0.39592,4543.2,4543.0,0.5803]
[1759851186850,0.39592,4543.2,4543.1,1.4557]
[1759851187352,0.00183388,4543.2,4543.1,1.4557]
[1759851189451,2.80796631,4543.2,4543.0,0.5803]
[1759851189649,0.00183388,4543.2,4543.1,1.4557]
[1759851191753,0.00183388,4543.2,4542.1,0.39601]
[1759851191754,0.39605,4541.7,4541.3,1.4557]
[1759851191956,0.39605,4541.7,4541.0,0.5803]
[1759851192156,0.39605,4541.7,4541.6,1.4557]
[1759851192357,0.39608,4541.4,4541.1,1.4557]
[1759851192562,0.39608,4541.4,4541.0,0.5803]
[1759851192857,0.39599,4542.4,4541.5,0.5803]
[1759851193067,0.39601,4542.2,4542.1,1.4557]
[1759851193562,0.98978,4543.3,4542.1,1.4557]
[1759851193950,0.39598,4542.5,4542.1,1.4557]
[1759851194156,0.39599,4542.4,4542.1,1.4557]
[1759851194356,0.39597,4542.6,4542.5,2.036]
[1759851194553,0.39601,4542.2,4542.0,0.5803]
[1759851195157,0.39601,4542.2,4542.0,2.036]
[1759851195359,0.39601,4542.2,4542.1,1.4557]
[1759851195658,0.39598,4542.5,4542.1,1.4557]
[1759851195955,0.396,4542.3,4542.0,0.5803]
[1759851196162,0.396,4542.2,4542.1,1.4557]
[1759851196763,0.396,4542.2,4542.0,0.5803]
[1759851197065,0.396,4542.2,4542.0,2.036]
[1759851197658,0.396,4542.2,4542.1,1.4557]
[1759851197965,0.223,4543.0,4542.1,1.4557]
[1759851198161,0.39598,4542.5,4542.1,1.4557]
[1759851198464,2.89631157,4542.9,4542.6,1.4557]
[1759851198661,0.00183388,4543.2,4543.1,1.4557]
[1759851198864,0.39597,4542.6,4542.4,1.4557]
[1759851199053,0.396,4542.3,4542.1,1.4557]
[1759851199251,0.396,4542.2,4542.1,1.4557]
[1759851199667,0.39599,4542.4,4542.1,1.4557]
[1759851199858,0.223,4542.6,4542.1,1.4557]
[1759851200057,0.61897,4542.6,4542.5,2.036]
[1759851200361,0.39609,4541.2,4541.0,0.00275855]
[1759851200662,3.41624656,4541.1,4541.0,2.03875855]
[1759851200856,0.98991,4542.7,4541.0,2.03875855]
[1759851201053,2.86826434,4542.3,4542.0,0.5803]
[1759851201253,2.86826434,4542.3,4541.5,0.5803]
[1759851201254,2.86826434,4542.6,4541.5,0.5803]
[1759851201454,0.00183388,4543.2,4541.6,1.4557]
[1759851201661,2.86826434,4542.6,4541.6,1.4557]
[1759851201864,2.86826434,4542.8,4542.5,2.036]
[1759851202064,0.223,4542.7,4542.6,1.4557]
[1759851203861,0.39596,4542.8,4542.6,1.4557]
[1759851204065,0.39596,4542.7,4542.6,1.4557]
[1759851206261,0.00183388,4543.2,4542.6,1.4557]
[1759851206262,0.00183388,4543.2,4543.0,0.5803]
[1759851206468,0.00183388,4543.2,4543.1,1.4557]
[1759851208363,0.00183388,4543.2,4543.1,6.4557]
[1759851208562,0.006,4544.8,4544.1,1.4557]
[1759851208763,9.88889,4547.4,4544.6,1.4557]
[1759851208969,0.39574,4545.3,4545.0,0.5803]
[1759851209161,1.97758,4547.9,4545.1,1.4557]
[1759851209162,2.82896287,4545.6,4545.1,1.4557]
[1759851209360,0.223,4546.3,4545.5,2.036]
[1759851209568,0.223,4546.2,4545.6,1.4557]
[1759851209769,0.22519968,4546.2,4545.6,1.4578574]
[1759851210062,0.39569,4545.8,4545.6,0.88232587]
[1759851210269,0.39569,4545.8,4545.6,0.0021574]
[1759851210468,2.80611394,4545.7,4545.6,0.0021574]
[1759851210668,0.98929,4545.5,4544.6,1.4557]
[1759851210870,0.39578,4544.7,4544.6,1.4557]
[1759851211169,3.13652358,4545.4,4544.7,1.4557]
[1759851211566,0.39577,4544.9,4544.6,0.85948244]
[1759851211767,0.39578,4544.8,4544.7,1.4557]
[1759851212072,0.61878,4544.8,4544.7,1.4557]
[1759851212767,0.223,4544.8,4544.7,1.4557]
[1759851212963,0.00219968,4546.2,4544.8,1.5665]
[1759851213174,1.97732,4548.5,4546.5,0.6066]
[1759851213175,2.83750665,4548.5,4546.5,0.6066]
[1759851213370,0.3956,4546.8,4546.6,1.5665]
[1759851213568,0.39562,4546.7,4546.6,1.5665]
[1759851213967,0.61862,4546.7,4546.6,1.5665]
[1759851214363,0.62145758,4546.7,4546.0,0.6066]
[1759851214570,0.39576,4545.0,4544.9,1.5665]
[1759851214772,0.39583,4544.3,4544.1,1.5665]
[1759851214975,0.224,4544.2,4544.1,1.5665]
[1759851215274,0.39592,4543.1,4543.0,2.1731]
[1759851215571,0.39592,4543.1,4542.5,2.1731]
[1759851215572,0.39597,4542.6,4542.5,2.1731]
[1759851215974,0.39597,4542.6,4542.5,0.00263408]
[1759851215975,0.39817007,4542.6,4542.5,0.00263408]
[1759851216273,0.39817007,4542.6,4542.5,1.56913408]
[1759851216871,0.00220007,4542.6,4542.5,1.56913408]
[1759851217071,0.00220007,4542.6,4542.5,0.00263408]
[1759851217376,0.396,4542.2,4542.0,0.6066]
[1759851217570,0.224,4542.1,4542.0,2.1731]
[1759851218173,0.224,4542.1,4542.0,2.17575766]
[1759851218374,0.00220007,4542.6,4542.0,2.17575766]
[1759851218570,0.00220007,4542.6,4542.5,0.6066]
[1759851218776,0.39588,4543.6,4542.6,1.5665]
[1759851219071,0.39591,4543.3,4542.6,1.5665]
[1759851219272,0.39595,4542.9,4542.5,0.6066]
[1759851219475,3.07603383,4543.2,4542.6,1.5665]
[1759851219779,0.39599,4542.4,4542.0,0.00265766]
[1759851219977,0.39601,4542.2,4542.0,0.00265766]
[1759851220172,0.8292,4542.1,4540.5,0.6066]
[1759851220374,0.99006,4542.0,4540.5,0.6066]
[1759851220568,0.39609,4541.2,4540.5,0.6066]
[1759851220774,0.224,4541.4,4540.5,0.6066]
[1759851220971,0.39615,4540.5,4540.0,0.6066]
[1759851221177,0.39615,4540.6,4540.0,0.60857679]
[1759851221480,0.224,4540.7,4540.0,0.60857679]
[1759851221676,0.39616,4540.5,4540.0,0.60857679]
[1759851221872,0.62013,4540.7,4540.0,0.60857679]
[1759851222077,0.224,4540.7,4540.0,0.60857679]
[1759851222274,1.81922,4542.2,4540.1,1.5665]
[1759851222483,0.39611,4541.0,4540.5,0.6066]
[1759851222680,0.39612,4540.8,4540.6,1.5665]
[1759851222983,0.39611,4541.0,4540.6,1.5665]
[1759851223178,0.224,4541.2,4540.6,1.5665]
[1759851223379,0.39614,4540.7,4540.6,1.5665]
[1759851223681,0.224,4541.1,4540.5,0.6066]
[1759851223882,0.39613,4540.8,4540.6,1.5665]
[1759851224080,0.39616,4540.4,4540.0,1.49226914]
[1759851224277,0.224,4541.0,4540.0,0.88566914]
[1759851224278,0.39618,4540.2,4540.0,0.88566914]
[1759851224886,1.5327,4541.9,4540.0,1.48796914]
[1759851225087,0.5682,4542.0,4540.0,1.48796914]
[1759851225088,0.14,4541.8,4540.0,1.48796914]
[1759851225282,0.99016,4541.6,4540.0,1.48796914]
[1759851225586,0.39617,4540.3,4540.0,1.48796914]
[1759851225785,0.39618,4540.1,4540.0,0.88566914]
[1759851226184,0.39618,4540.1,4540.0,2.38586914]
[1759851226379,0.39617,4540.3,4540.0,2.38586914]
[1759851226580,0.39618,4540.2,4540.1,1.5002]
[1759851226982,0.99021,4541.3,4540.1,6.5002]
[1759851227188,0.39616,4540.4,4540.0,0.88566914]
[1759851227484,1.5327,4541.8,4540.1,1.5002]
[1759851227689,0.39612,4540.9,4540.1,1.5002]
[1759851227885,0.39613,4540.8,4540.1,1.5002]
[1759851228383,0.39611,4541.0,4540.1,1.89638]
[1759851228689,0.39612,4540.9,4540.2,1.5002]
[1759851228889,0.39611,4541.0,4540.3,1.5002]
[1759851229190,0.224,4541.5,4540.3,1.5002]
[1759851229391,0.39614,4540.7,4540.1,1.5002]
[1759851229584,0.39614,4540.6,4540.1,1.5002]
[1759851229784,0.224,4541.5,4538.6,1.5002]
[1759851229982,1.5327,4535.3,4532.9,0.02206118]
[1759851230184,0.39656,4535.9,4533.2,0.39678]
[1759851230381,2.1009,4537.2,4533.0,40.8]
[1759851230582,1.5327,4537.2,4533.5,9.91912]
[1759851230782,1.53477261,4537.2,4534.1,9.91783]
[1759851230986,0.00207261,4537.2,4534.6,9.91661]
[1759851231185,9.91211,4536.8,4532.9,0.88729503]
[1759851231492,0.00207261,4537.2,4534.3,9.9174]
[1759851231687,0.39851261,4537.2,4534.9,0.9916]
[1759851231890,0.39646,4537.0,4535.6,0.39657]
[1759851232085,0.39647,4536.9,4535.9,0.39655]
[1759851232285,1.5327,4538.0,4536.6,0.39648]
[1759851232485,1.5327,4538.7,4537.3,0.39643]
[1759851232684,1.5327,4538.7,4535.7,9.91421]
[1759851232685,1.5327,4538.7,4537.2,0.131]
[1759851232885,0.39643,4537.3,4537.2,0.0019092]
[1759851233689,0.39643,4537.3,4537.2,40.8019092]
[1759851233891,1.92913,4537.3,4537.2,0.0019092]
[1759851236092,2.15313,4537.3,4537.2,0.0019092]
[1759851236290,1.5327,4537.3,4537.2,0.0019092]
[1759851236488,0.5682,4538.4,4537.2,5.0019092]
[1759851236693,0.39639,4537.8,4537.2,0.0019092]
[1759851237191,1.5327,4538.5,4537.2,0.0019092]
[1759851237192,0.00219206,4538.7,4537.3,45.8]
[1759851237382,1.5327,4539.6,4538.2,0.39635]
[1759851237582,1.5327,4539.6,4538.1,0.39636]
[1759851237887,0.46110366,4540.2,4538.6,0.39631]
[1759851238086,0.39626,4539.2,4538.7,0.0025]
[1759851238282,0.39628,4539.0,4538.7,0.0025]
[1759851238483,0.00174027,4539.0,4538.1,0.87067804]
[1759851238681,0.00174027,4539.0,4538.1,0.0025]
[1759851238885,0.39625,4539.4,4538.7,0.3963]
[1759851239188,0.39622,4539.8,4538.9,0.39628]
[1759851239490,0.99043,4540.3,4538.7,0.6203]
[1759851239681,0.39626,4539.3,4538.7,0.6203]
[1759851239883,0.39627,4539.2,4538.7,0.224]
[1759851240281,0.39626,4539.2,4538.7,0.224]
[1759851240486,0.0026881,4539.3,4538.1,0.85904786]
[1759851240687,1.5327,4539.0,4537.2,0.0019092]
[1759851240888,1.5327,4539.0,4537.3,41.024]
[1759851241089,0.39641,4537.5,4537.3,41.024]
[1759851241292,0.24641,4537.5,4537.3,41.90163853]
[1759851241494,0.39639,4537.7,4537.3,41.90163853]
[1759851241690,0.39641,4537.5,4537.3,41.90163853]
[1759851241889,1.5327,4539.2,4537.3,1.10163853]
[1759851242090,0.39637,4538.1,4537.3,1.10163853]
[1759851242297,1.5327,4538.5,4537.3,1.10163853]
[1759851242489,0.39642,4537.5,4537.3,0.87763853]
[1759851242690,0.39643,4537.3,4537.2,0.0019092]
[1759851242888,0.39643,4537.3,4537.2,0.87003213]
[1759851243095,1.83583,4537.3,4537.2,0.0019092]
[1759851243896,0.39643,4537.3,4537.2,0.90377729]
[1759851245598,1.83583,4537.3,4537.2,0.90377729]
[1759851246393,0.39642,4537.5,4537.2,0.90377729]
[1759851246594,0.39643,4537.4,4537.2,0.90377729]
[1759851246794,0.99089,4538.2,4537.3,0.9994]
[1759851246795,1.21488,4538.2,4537.3,0.9994]
[1759851247102,0.5989,4538.4,4537.3,0.9994]
[1759851247395,1.55892,4539.0,4537.3,1.39583]
[1759851247601,0.39632,4538.6,4537.4,0.9994]
[1759851247800,0.99069,4539.1,4537.7,0.9994]
[1759851248001,0.39631,4538.7,4537.8,0.39638]
[1759851248202,0.39629,4538.9,4537.8,0.4997]
[1759851248396,0.0026881,4539.3,4538.4,0.9994]
[1759851248693,0.0026881,4539.3,4538.1,0.114]
[1759851248900,2.0383,4538.4,4537.3,0.9994]
[1759851249098,0.39642,4537.4,4537.2,0.90377729]
[1759851249293,1.83582,4537.4,4537.2,0.90377729]
[1759851250700,1.4394,4537.3,4537.2,0.90377729]
[1759851251698,6.4394,4537.3,4537.2,0.90377729]
[1759851252000,6.4394,4537.3,4537.2,0.0019092]
[1759851252999,0.39654,4536.1,4533.7,1.0013]
[1759851253199,0.146,4536.2,4535.0,1.0013]
[1759851253405,1.4394,4535.9,4534.4,1.0013]
[1759851253601,0.99149,4535.5,4534.4,1.0013]
[1759851253799,1.4394,4535.4,4534.4,1.0013]
[1759851253997,0.39661,4535.2,4534.4,1.00414694]
[1759851254197,0.00204525,4535.4,4534.5,0.39667]
[1759851254399,0.00204525,4535.4,4534.8,0.39664]
[1759851254703,0.00204525,4535.4,4534.8,0.89824]
[1759851254900,0.00204525,4535.4,4534.9,1.0013]
[1759851255096,0.00204525,4535.4,4534.7,1.0013]
[1759851255900,0.00204525,4535.4,4534.9,0.39664]
[1759851256102,0.00204525,4535.4,4535.3,1.0013]
[1759851256800,0.00204525,4535.4,4535.3,41.8013]
[1759851257207,0.00204525,4535.4,4535.3,1.0013]
[1759851257803,0.39664,4535.0,4534.8,0.224]
[1759851258104,0.39664,4535.0,4534.9,1.0013]
[1759851258809,0.39664,4535.0,4534.9,41.8013]
[1759851259102,0.39661,4535.3,4535.0,1.0013]
[1759851259309,0.39662,4535.1,4535.0,1.0013]
[1759851259603,0.00204525,4535.4,4535.0,1.0013]
[1759851259802,0.39663,4535.1,4535.0,1.0013]
[1759851260397,1.4394,4536.2,4535.0,5.0]
[1759851260602,0.99129,4536.4,4535.1,0.39662]
[1759851260802,0.99129,4536.4,4535.2,1.0013]
[1759851261002,0.99129,4536.4,4534.9,40.8]
[1759851261003,1.4394,4536.0,4534.9,40.8]
[1759851261199,0.99128,4536.4,4535.1,0.39662]
[1759851261410,0.993417,4536.4,4535.1,0.39662]
[1759851261604,0.39662,4535.1,4534.9,40.8]
[1759851261909,0.39662,4535.2,4534.9,40.8]
[1759851262103,1.4394,4536.0,4535.0,1.0013]
[1759851262304,0.002137,4536.4,4534.9,41.024]
[1759851262512,0.39659,4535.5,4535.0,0.39662]
[1759851262704,0.3966,4535.4,4535.1,0.39662]
[1759851262904,0.99132,4536.2,4534.9,41.024]
[1759851262905,2.0383,4536.6,4535.6,1.0013]
[1759851263104,0.39656,4535.8,4534.9,42.0156]
[1759851263303,0.39655,4535.9,4535.6,0.39658]
[1759851263497,0.39655,4535.9,4535.7,1.0013]
[1759851263705,1.4394,4536.6,4535.9,0.39655]
[1759851263905,0.39654,4536.1,4535.7,0.39656]
[1759851264102,0.00283875,4536.6,4535.6,1.0013]
[1759851264309,0.00283875,4536.6,4536.5,1.0013]
[1759851265306,0.00283875,4536.6,4534.5,1.0013]
[1759851265307,0.39663,4535.1,4534.5,1.0013]
[1759851265609,0.5989,4535.5,4534.4,0.00284694]
[1759851265810,0.39664,4534.9,4534.4,0.00284694]
[1759851266007,0.39665,4534.8,4534.4,0.00284694]
[1759851266211,0.5989,4535.5,4534.4,0.00284694]
[1759851266212,0.39667,4534.6,4534.5,1.0013]
[1759851266400,0.99154,4535.2,4534.5,1.0013]
[1759851266605,0.39667,4534.6,4534.5,1.0013]
[1759851267107,0.39665,4534.8,4534.5,1.0013]
[1759851267305,0.39663,4535.0,4534.6,0.39667]
[1759851267510,2.0383,4536.0,4534.8,0.39664]
[1759851267709,0.39663,4535.1,4534.7,0.39665]
[1759851267911,0.39664,4534.9,4534.6,0.39666]
[1759851268109,0.39665,4534.9,4534.7,1.0013]
[1759851268713,0.39666,4534.7,4534.5,1.0013]
[1759851269202,0.39667,4534.6,4534.4,0.00284694]
[1759851270111,1.4394,4534.5,4534.4,0.00284694]
[1759851270410,2.0383,4534.5,4534.4,0.00284694]
[1759851270712,7.0383,4534.5,4533.7,0.87998201]
[1759851270913,0.39679,4533.2,4533.1,1.2253]
[1759851271107,0.224,4534.6,4533.1,1.2253]
[1759851271108,2.89900505,4534.4,4533.3,0.99195]
[1759851271311,0.5989,4535.5,4534.5,0.8144]
[1759851271505,1.98263,4536.3,4534.5,0.8144]
[1759851271709,0.39665,4534.8,4534.6,1.4126]
[1759851272100,0.39665,4534.8,4534.5,0.00261759]
[1759851272301,0.9915,4535.4,4534.5,0.00261759]
[1759851272513,0.39666,4534.7,4534.6,1.3959]
[1759851273208,0.5989,4535.5,4534.5,0.00261759]
[1759851273406,1.03214,4535.5,4534.6,1.452]
[1759851273616,0.39663,4535.0,4534.6,1.452]
[1759851273809,0.39665,4534.8,4534.5,0.00261759]
[1759851274006,0.39665,4534.8,4534.6,1.452]
[1759851274206,0.39665,4534.8,4534.5,0.00261759]
[1759851274407,0.39664,4534.9,4534.6,1.452]
[1759851274606,0.39665,4534.8,4534.6,1.452]
[1759851274802,0.20698554,4534.8,4534.6,1.452]
[1759851275404,0.20698554,4534.8,4534.5,0.39928759]
[1759851275405,0.39665,4534.8,4534.5,1.45461759]
[1759851275913,0.39665,4534.8,4534.5,0.00261759]
[1759851276108,0.39666,4534.7,4534.6,1.452]
[1759851276314,1.82546,4534.7,4534.5,0.00261759]
[1759851276509,1.4288,4534.6,4534.5,0.00261759]
[1759851276714,0.39666,4534.7,4534.5,0.00261759]
[1759851276912,1.4288,4534.6,4534.5,0.00261759]
[1759851277405,9.35191855,4534.6,4534.5,0.00261759]
[1759851278110,1.4288,4534.6,4534.5,0.00261759]
[1759851278306,0.39665,4534.8,4534.6,1.452]
[1759851278511,0.39666,4534.7,4534.6,1.4649]
[1759851278830,0.39666,4534.7,4534.5,0.00261759]
[1759851279112,6.85337,4534.6,4534.5,0.00261759]
[1759851279414,1.4567,4533.2,4532.9,0.02206118]
[1759851279610,0.3968,4533.1,4532.9,0.02206118]
[1759851279813,1.4567,4533.0,4532.9,0.02206118]
[1759851280116,1.4567,4533.0,4532.9,0.54733401]
[1759851280316,1.4567,4533.0,4532.9,0.54901442]
[1759851280711,7.0555,4533.0,4532.9,0.02374159]
[1759851281013,7.2815,4533.0,4532.9,0.02374159]
[1759851281216,2.2815,4533.0,4532.9,0.02374159]
[1759851281412,10.1930522,4533.0,4532.9,0.01864791]
[1759851282305,4.9670522,4533.0,4532.9,0.01864791]
[1759851282714,5.1930522,4533.0,4532.9,0.01864791]
[1759851283014,2.0555,4533.0,4532.9,0.01864791]
[1759851283210,1.4567,4533.0,4532.9,0.01864791]
[1759851283411,1.6817,4533.0,4532.9,0.01864791]
[1759851283714,1.4567,4533.0,4532.9,0.01864791]
[1759851283910,1.6817,4533.0,4532.9,0.01864791]
[1759851284107,1.4567,4533.0,4532.9,0.01864791]
[1759851284314,0.39678,4533.3,4532.9,0.01864791]
[1759851284508,1.4567,4533.3,4532.9,0.01864791]
[1759851284710,1.4567,4533.9,4533.0,1.4649]
[1759851284914,0.225,4533.8,4533.0,1.4649]
[1759851285416,0.62174,4533.8,4533.0,1.4649]
[1759851285613,0.39676,4533.6,4533.0,1.4649]
[1759851285813,0.62174,4533.8,4533.0,1.4649]
[1759851286009,1.4567,4533.9,4533.0,1.8617]
[1759851286206,0.225,4533.8,4533.0,1.4649]
[1759851286412,1.85346,4533.5,4532.9,0.01864791]
[1759851286606,0.39674,4533.8,4533.0,1.8617]
[1759851286813,1.4567,4534.0,4533.0,1.4649]
[1759851287008,0.5988,4534.5,4533.3,0.39677]
[1759851287208,0.5988,4534.5,4533.4,1.4649]
[1759851287419,0.39672,4534.0,4533.4,1.4649]
[1759851287716,0.5988,4534.5,4533.4,1.4649]
[1759851287717,0.225,4534.3,4533.4,1.86166]
[1759851287912,0.39671,4534.2,4533.5,0.39676]
[1759851288117,0.225,4534.4,4533.4,1.4649]
[1759851288319,0.39672,4534.0,4533.4,1.4649]
[1759851288513,0.99163,4534.8,4533.4,1.4649]
[1759851288514,0.99152,4535.4,4533.4,1.4649]
[1759851288820,0.39669,4534.4,4533.7,0.39674]
[1759851289015,0.39669,4534.4,4533.8,1.86163]
[1759851289515,1.4567,4533.9,4533.5,1.4649]
[1759851289815,0.39681,4533.0,4532.9,1.48354791]
[1759851290023,2.44861,4533.5,4532.9,0.01864791]
[1759851290211,0.39681,4533.0,4532.9,0.01864791]
[1759851290411,3.04741,4533.5,4532.9,0.01864791]
[1759851290616,0.39681,4533.0,4532.9,0.01864791]
[1759851290914,0.29972148,4533.0,4532.9,0.01864791]
[1759851291116,0.39679,4533.2,4532.9,1.48354791]
[1759851291321,0.3968,4533.1,4532.9,0.01864791]
[1759851291522,1.8535,4533.1,4532.9,0.01864791]
[1759851292219,1.4567,4533.0,4532.9,0.01864791]
[1759851293418,0.39678,4533.3,4532.9,0.01864791]
[1759851293624,0.39679,4533.2,4533.0,1.4649]
[1759851295524,0.39681,4533.0,4532.9,0.01864791]
[1759851295724,0.39681,4533.0,4532.9,1.48354791]
[1759851296126,1.85351,4533.0,4532.9,0.01864791]
[1759851296821,1.98337,4534.6,4533.2,1.4649]
[1759851297021,0.39678,4533.3,4533.0,0.3211]
[1759851297218,1.98305,4535.3,4533.1,1.4649]
[1759851297417,1.98305,4535.3,4533.7,1.4649]
[1759851297621,0.39668,4534.5,4533.7,1.86164]
[1759851297821,0.99163,4534.8,4533.6,1.4649]
[1759851298023,0.39674,4533.8,4533.6,1.4649]
[1759851298321,0.39674,4533.8,4533.5,0.6113]
[1759851298527,0.39674,4533.8,4533.6,1.4649]
[1759851298728,0.39675,4533.7,4533.6,1.4649]
[1759851299425,0.39671,4534.1,4533.5,0.6113]
[1759851299620,2.44835,4534.7,4533.6,1.86165]
[1759851299824,1.98307,4535.3,4533.6,1.86165]
[1759851299825,0.9916,4534.9,4533.6,1.4649]
[1759851300024,0.39671,4534.1,4533.8,1.4649]
[1759851300220,0.225,4535.0,4533.7,0.225]
[1759851300221,0.99159,4535.0,4533.7,0.225]
[1759851300428,0.99156,4535.1,4533.8,1.4649]
[1759851300630,0.3967,4534.2,4533.8,1.86163]
[1759851300824,4.28038414,4534.8,4533.8,1.86163]
[1759851300825,2.82368414,4535.1,4533.8,1.4649]
[1759851301025,1.59233872,4536.0,4534.1,1.4649]
[1759851301026,0.00216872,4536.0,4534.1,1.4649]
[1759851301228,0.99099,4537.7,4535.1,0.99156]
[1759851301426,0.99093,4538.0,4536.3,1.4649]
[1759851301626,0.99067,4539.2,4536.3,1.4649]
[1759851301830,0.99077,4538.8,4537.1,1.4649]
[1759851302030,2.8493004,4538.5,4537.5,2.0762]
[1759851302333,0.00259067,4538.5,4538.1,1.4649]
[1759851302634,0.00259067,4538.5,4538.2,1.4495]
[1759851303030,0.00259067,4538.5,4538.3,0.39633]
[1759851303332,0.00259067,4538.5,4538.4,1.4495]
[1759851303730,0.39627,4539.2,4538.4,1.4495]
[1759851303929,1.4108,4539.9,4538.5,0.5925]
[1759851303930,0.085,4539.6,4538.5,0.5925]
[1759851304228,1.4108,4537.6,4537.5,0.00187884]
[1759851304435,6.4108,4537.6,4537.5,0.00187884]
[1759851304630,9.43733282,4537.6,4537.5,0.00187884]
[1759851304830,9.43944304,4537.6,4537.5,0.53626233]
[1759851305031,2.40198,4536.9,4535.7,0.037]
[1759851305230,1.4108,4536.9,4535.8,1.4495]
[1759851305431,0.39653,4536.2,4535.8,1.4495]
[1759851305832,2.86609984,4536.8,4535.8,0.93649006]
[1759851306034,0.225,4536.8,4536.1,1.4495]
[1759851306230,0.39648,4536.8,4536.1,1.4495]
[1759851306436,0.39649,4536.7,4536.1,1.4495]
[1759851306630,0.113,4537.0,4536.1,1.4495]
[1759851306837,2.85287614,4537.5,4537.2,0.5925]
[1759851307033,0.00211022,4537.6,4537.3,1.4495]
[1759851307435,0.39632,4538.6,4537.7,0.39639]
[1759851307635,0.39632,4538.6,4537.9,1.4495]
[1759851307933,0.109,4538.8,4537.8,0.5925]
[1759851308138,2.87096457,4538.9,4537.9,1.4495]
[1759851308328,0.39634,4538.4,4538.0,1.4495]
[1759851308528,0.00219844,4538.4,4538.0,1.4495]
[1759851308938,0.39636,4538.1,4538.0,1.4495]
[1759851309234,0.00219844,4538.4,4537.9,1.4495]
[1759851310235,0.00219844,4538.4,4538.2,1.4495]
[1759851311242,0.00219844,4538.4,4538.2,0.39635]
[1759851311437,0.00219844,4538.4,4538.3,1.4495]
[1759851312140,0.39625,4539.4,4538.6,0.39631]
[1759851312337,0.39625,4539.4,4538.7,1.8458]
[1759851312533,0.39626,4539.3,4538.8,1.4495]
[1759851312737,0.9906,4539.5,4538.5,1.4495]
[1759851312938,0.99052,4539.9,4538.5,1.4495]
[1759851313247,0.39626,4539.3,4538.6,1.84581]
[1759851313434,0.39627,4539.2,4538.7,1.4495]
[1759851313638,0.39627,4539.2,4539.0,0.5925]
[1759851313841,0.39625,4539.4,4539.1,1.4495]
[1759851314045,0.39626,4539.2,4539.1,1.4495]
[1759851314439,0.39625,4539.4,4539.1,1.4495]
[1759851314739,0.22697716,4539.9,4539.1,1.4495]
[1759851314940,0.00197716,4539.9,4539.1,1.4495]
[1759851315140,0.39818716,4539.9,4539.1,1.4495]
[1759851315335,0.00197716,4539.9,4539.6,1.4495]
[1759851315542,0.09,4541.3,4539.6,1.4495]
[1759851315744,1.4108,4541.0,4539.6,1.4495]
[1759851315941,0.39619,4540.1,4539.7,40.8]
[1759851316146,0.39619,4540.1,4539.8,1.4495]
[1759851316343,0.39617,4540.3,4539.8,1.4495]